bitfinex/quotes_ETHUSD_20251023
["timestamp","ask_amount","ask_price","bid_price","bid_amount"]
[1761224036492,0.4637,3847.8,3847.1,1.2]
[1761224036730,2.59908261,3847.6,3847.1,1.2]
[1761224037094,3.06278261,3847.6,3847.1,1.2]
[1761224037329,0.4637,3847.5,3847.1,1.2]
[1761224038447,0.2203,3847.9,3847.1,3.79935957]
[1761224038615,3.06260776,3847.8,3847.1,3.79935957]
[1761224039005,2.59890776,3847.8,3847.2,2.59929019]
[1761224039236,3.03230764,3847.7,3847.1,3.79935343]
[1761224039631,0.4333,3847.6,3847.1,3.79935343]
[1761224040342,3.03233652,3847.6,3847.1,1.2]
[1761224040543,0.4333,3847.6,3847.1,1.2]
[1761224040714,3.0324355,3847.5,3847.1,1.2]
[1761224041143,0.4333,3847.4,3847.1,1.2]
[1761224044341,3.0324635,3847.4,3847.1,1.2]
[1761224044649,0.1296,3847.2,3847.1,1.2]
[1761224045011,0.5629,3847.2,3847.1,1.2]
[1761224045249,0.1296,3847.2,3847.1,1.2]
[1761224047949,0.1296,3847.2,3847.1,3.79936055]
[1761224048150,0.1296,3847.2,3847.1,4.17929661]
[1761224048353,0.1296,3847.2,3847.1,4.20529021]
[1761224048655,0.1296,3847.2,3847.1,4.17929661]
[1761224050276,0.001,3847.9,3847.1,1.58483606]
[1761224050429,0.001,3847.9,3847.2,0.0049]
[1761224050771,0.6661,3847.8,3847.3,3.49048361]
[1761224050968,0.6661,3847.8,3847.3,3.332]
[1761224051179,0.4333,3847.7,3847.3,3.332]
[1761224051487,0.4333,3847.7,3847.2,2.59928376]
[1761224051652,0.2328,3847.8,3847.3,2.59921305]
[1761224051854,0.2328,3847.8,3847.1,3.79934869]
[1761224052169,0.4333,3847.7,3847.1,3.79934869]
[1761224052558,0.4333,3847.7,3847.2,2.59928829]
[1761224053777,3.03225748,3847.7,3847.1,3.79934424]
[1761224054084,0.4333,3847.7,3847.2,2.59922901]
[1761224054682,3.03226257,3847.7,3847.1,2.17308486]
[1761224055187,0.4333,3847.7,3847.1,2.17308486]
[1761224055366,0.4333,3847.7,3847.2,2.599284]
[1761224056288,3.5648,3847.8,3847.2,2.599284]
[1761224056458,3.5648,3847.8,3847.3,2.59921537]
[1761224056781,6.59699039,3847.8,3847.2,2.59928385]
[1761224056980,2.59896886,3847.7,3847.1,3.79934566]
[1761224057151,3.03226886,3847.7,3847.1,3.79934566]
[1761224057354,0.4333,3847.7,3847.2,2.59928653]
[1761224058182,3.03225715,3847.7,3847.1,3.79933295]
[1761224058382,0.4333,3847.7,3847.1,3.79933295]
[1761224058586,0.4333,3847.7,3847.2,2.59928443]
[1761224058788,0.4333,3847.7,3847.3,2.59922377]
[1761224059083,0.4333,3847.7,3847.1,3.7993507]
[1761224059286,3.5648,3847.8,3847.2,0.71313507]
[1761224059658,3.332,3847.8,3847.2,0.71313507]
[1761224059990,3.332,3847.8,3847.4,2.59911426]
[1761224060386,0.1296,3847.5,3847.3,2.59920351]
[1761224060587,3.7653,3847.8,3847.3,2.59920351]
[1761224060793,3.7653,3847.8,3847.4,2.59913473]
[1761224061275,0.1296,3847.5,3847.4,2.59913473]
[1761224061795,0.1288,3847.5,3847.3,2.59919701]
[1761224062005,3.7653,3847.8,3847.4,2.59915787]
[1761224062174,3.332,3847.8,3847.2,0.71313507]
[1761224062376,0.001,3847.9,3847.7,2.59891483]
[1761224062592,0.1296,3847.8,3847.7,2.59891483]
[1761224062890,0.001,3847.9,3847.8,2.59888767]
[1761224063903,0.001,3847.9,3847.7,2.59889828]
[1761224064207,0.2328,3847.8,3847.6,3.86231046]
[1761224064415,0.6661,3847.8,3847.6,3.86231046]
[1761224064922,0.2328,3847.8,3847.6,3.86231046]
[1761224065072,0.2328,3847.8,3847.6,6.46132096]
[1761224065270,0.001,3847.9,3847.6,6.46128907]
[1761224065988,0.4322,3847.9,3847.6,6.4613312]
[1761224066594,0.4322,3847.9,3847.6,3.1303312]
[1761224067103,0.4322,3847.9,3847.7,2.59894871]
[1761224067503,0.2204,3847.9,3847.6,0.53131046]
[1761224067803,0.001,3847.9,3847.6,3.13032848]
[1761224068172,0.001,3847.9,3847.6,0.53131046]
[1761224068575,0.001,3847.9,3847.7,2.59891992]
[1761224068775,0.001,3847.9,3847.8,2.59888767]
[1761224069007,0.001,3847.9,3847.6,3.13032168]
[1761224069375,0.4458,3847.9,3847.6,3.13032168]
[1761224069705,0.001,3847.9,3847.8,2.59888767]
[1761224069903,0.001,3847.9,3847.6,3.130277]
[1761224069904,0.001,3847.9,3847.7,2.59893083]
[1761224070201,0.001,3847.9,3847.7,5.92993083]
[1761224070377,0.2274,3847.9,3847.7,2.5989549]
[1761224070577,0.4448,3847.8,3847.7,2.5989549]
[1761224070777,0.2274,3847.9,3847.7,2.5989549]
[1761224071107,0.001,3847.9,3847.6,0.53131046]
[1761224071308,0.001,3847.9,3847.7,2.59890907]
[1761224071807,0.001,3847.9,3847.8,2.62487654]
[1761224072011,0.001,3847.9,3847.8,2.59888767]
[1761224072311,0.001,3847.9,3847.8,2.87901662]
[1761224072692,0.1306,3847.9,3847.8,2.87901662]
[1761224073280,0.1306,3847.9,3847.8,2.59888767]
[1761224073500,0.1306,3847.9,3847.7,2.59889378]
[1761224073700,0.1296,3847.7,3847.6,3.13027678]
[1761224074594,0.1296,3847.7,3847.6,3.13517678]
[1761224075934,0.001,3847.9,3847.8,2.59888767]
[1761224076086,0.001,3847.9,3847.8,3.53128299]
[1761224076292,0.1306,3847.9,3847.8,3.53128299]
[1761224076533,0.1306,3847.9,3847.8,3.50529412]
[1761224080234,0.1306,3847.9,3847.8,3.53128299]
[1761224080634,0.001,3847.9,3847.8,6.84019412]
[1761224081644,0.001,3847.9,3847.8,6.83529412]
[1761224083229,0.6722,3847.9,3847.8,2.59888767]
[1761224083531,0.8018,3847.9,3847.8,2.59888767]
[1761224083931,0.357,3847.9,3847.8,2.59888767]
[1761224084521,0.8018,3847.9,3847.8,2.59888767]
[1761224085545,0.1306,3847.9,3847.8,2.59888767]
[1761224085743,0.1306,3847.9,3847.8,3.76490075]
[1761224086243,0.0002,3847.9,3847.8,3.79088962]
[1761224086535,0.0002,3847.9,3847.8,3.76980075]
[1761224086708,0.0002,3847.9,3847.8,3.89450075]
[1761224087549,0.0002,3847.9,3847.8,3.76490075]
[1761224094222,0.0002,3847.9,3847.8,3.79088962]
[1761224097399,0.0002,3847.9,3847.8,3.79578962]
[1761224098434,0.0002,3847.9,3847.8,4.99578962]
[1761224098652,0.0002,3847.9,3847.8,5.12538962]
[1761224099358,0.0002,3847.9,3847.8,5.09940075]
[1761224099650,0.0002,3847.9,3847.8,4.96980075]
[1761224099857,0.0002,3847.9,3847.8,5.09940075]
[1761224104370,0.0002,3847.9,3847.8,5.10140075]
[1761224106381,0.0002,3847.9,3847.8,5.12738962]
[1761224106875,0.0002,3847.9,3847.8,5.10140075]
[1761224107781,0.0002,3847.9,3847.8,5.09650075]
[1761224108166,0.0002,3847.9,3847.8,5.10140075]
[1761224108569,0.0002,3847.9,3847.8,5.12248962]
[1761224108868,0.0002,3847.9,3847.8,8.42350075]
[1761224109368,0.0002,3847.9,3847.8,8.42840075]
[1761224109753,0.0002,3847.9,3847.8,9.98360075]
[1761224111144,0.0004,3848.3,3848.2,2.59861753]
[1761224111471,0.0004,3848.3,3848.2,5.92561753]
[1761224111780,0.0004,3848.3,3848.2,6.79360838]
[1761224113358,0.4743,3848.3,3848.2,5.92561753]
[1761224113747,0.0004,3848.3,3848.2,5.92561753]
[1761224116475,0.0004,3848.3,3848.2,5.93051753]
[1761224116979,0.0004,3848.3,3848.2,5.92561753]
[1761224133903,0.0004,3848.3,3848.2,6.39761753]
[1761224134105,0.0004,3848.3,3848.2,7.3102097]
[1761224134828,0.0004,3848.3,3848.2,7.4447097]
[1761224135124,0.0004,3848.3,3848.2,8.9999097]
[1761224135331,0.0006,3848.4,3848.3,4.15865]
[1761224135625,0.0006,3848.4,3848.3,4.1846355]
[1761224135829,0.0006,3848.4,3848.3,5.60695044]
[1761224136121,0.0006,3848.4,3848.3,5.68490653]
[1761224136509,0.001,3849.1,3849.0,4.15327742]
[1761224136715,0.001,3849.1,3849.0,7.50425819]
[1761224137042,0.001,3849.1,3849.0,7.60787742]
[1761224137203,0.001,3849.1,3849.0,8.73290741]
[1761224137591,0.001,3849.1,3848.9,0.38695452]
[1761224137592,2.59807742,3849.0,3848.9,0.38695452]
[1761224137787,2.59807742,3849.0,3847.6,0.53131046]
[1761224137788,0.50688,3849.0,3847.8,0.002]
[1761224138105,0.57698104,3849.1,3847.8,0.002]
[1761224138106,1.5552,3848.8,3847.8,3.326]
[1761224138411,0.46253974,3848.7,3848.0,2.59869447]
[1761224138616,0.472,3848.8,3848.1,3.324]
[1761224138813,0.472,3849.0,3848.1,3.324]
[1761224139012,0.472,3849.0,3848.3,2.59854093]
[1761224139218,0.472,3849.0,3848.4,0.02598482]
[1761224139388,1.5552,3848.9,3848.4,0.02598482]
[1761224139592,1.5552,3848.9,3848.3,2.59853726]
[1761224139888,0.472,3848.8,3848.4,0.02598482]
[1761224140091,2.0272,3848.8,3848.1,3.326]
[1761224140292,2.59829251,3848.7,3848.1,3.326]
[1761224140491,3.07029251,3848.7,3848.1,3.326]
[1761224140724,0.472,3848.6,3848.1,3.326]
[1761224141729,3.07035272,3848.6,3848.1,3.326]
[1761224142028,2.59848248,3848.4,3848.1,0.002]
[1761224142399,0.472,3848.3,3848.1,0.002]
[1761224144358,3.07055623,3848.3,3848.1,0.002]
[1761224144554,0.472,3848.3,3848.1,0.002]
[1761224144855,0.472,3848.2,3848.1,0.002]
[1761224147652,0.6016,3848.2,3848.1,0.002]
[1761224159720,0.6008,3848.2,3848.1,0.002]
[1761224163923,3.519353,3848.2,3848.1,0.002]
[1761224164130,7.350233,3848.2,3848.1,0.002]
[1761224165829,0.92073547,3848.2,3848.1,0.002]
[1761224165994,6.52341753,3848.2,3848.1,0.002]
[1761224166417,3.9248,3848.2,3848.1,0.002]
[1761224167201,6.52341753,3848.2,3848.1,0.002]
[1761224167535,8.58549753,3848.2,3848.1,0.002]
[1761224167735,8.68950912,3848.2,3848.1,0.002]
[1761224167902,8.68950912,3848.2,3847.8,0.002]
[1761224167903,4.66090013,3847.9,3847.8,0.002]
[1761224168109,5.01520013,3847.9,3847.8,0.002]
[1761224168310,5.48880013,3847.9,3847.8,0.002]
[1761224169227,9.86296167,3847.9,3847.8,0.002]
[1761224171504,5.48880013,3847.9,3847.8,0.002]
[1761224171692,6.75544713,3847.9,3847.8,0.002]
[1761224171899,8.30592013,3847.9,3847.8,0.002]
[1761224172231,8.81280013,3847.9,3847.8,0.002]
[1761224172737,5.7071,3847.9,3847.8,0.002]
[1761224173040,8.30592013,3847.9,3847.8,0.002]
[1761224174502,5.7071,3847.9,3847.8,0.002]
[1761224175305,8.30592013,3847.9,3847.8,0.002]
[1761224175727,9.1470133,3847.9,3847.8,0.002]
[1761224176898,2.3831,3847.9,3847.8,0.002]
[1761224177103,5.7071,3847.9,3847.8,0.002]
[1761224177742,5.0088,3847.9,3847.8,0.002]
[1761224177940,1.6848,3847.9,3847.8,0.002]
[1761224178107,2.1584,3847.9,3847.8,0.002]
[1761224178934,0.1296,3847.9,3847.8,0.002]
[1761224179649,0.50688,3846.7,3843.6,0.42865425]
[1761224179938,0.50688,3846.7,3843.3,3.25810813]
[1761224179939,0.50688,3845.5,3844.2,0.0217]
[1761224180147,4.9062,3845.4,3844.4,2.60117025]
[1761224180352,4.9062,3845.4,3844.2,2.62301684]
[1761224180553,2.60064123,3845.3,3844.4,2.60117168]
[1761224180721,2.60066253,3845.2,3844.4,2.60117168]
[1761224180923,1.5552,3845.3,3844.2,2.62301737]
[1761224181123,1.5552,3845.3,3844.5,2.6030937]
[1761224182964,1.5552,3845.3,3844.7,2.60097708]
[1761224184163,1.5544,3845.3,3844.6,0.26250937]
[1761224184466,2.82507852,3845.6,3844.8,2.60086556]
[1761224184765,2.60044825,3845.5,3844.8,2.60086556]
[1761224185329,2.82508864,3845.6,3844.9,2.600846]
[1761224185963,2.82508864,3845.6,3844.8,2.60090148]
[1761224186169,2.60045728,3845.5,3844.8,2.60090148]
[1761224186331,0.4299,3845.5,3844.6,0.002]
[1761224186531,1.7799,3845.6,3844.6,0.002]
[1761224186532,0.4299,3845.4,3844.6,0.002]
[1761224186757,2.60072363,3845.1,3844.6,0.002]
[1761224187131,3.03062363,3845.1,3844.6,0.002]
[1761224187474,2.60078073,3845.0,3844.6,0.002]
[1761224187684,3.03068902,3845.0,3844.6,0.002]
[1761224187892,0.6671,3844.9,3844.6,0.002]
[1761224189671,0.1304,3844.7,3844.6,0.002]
[1761224191788,0.1304,3844.7,3844.6,2.60305082]
[1761224192284,0.1304,3844.7,3844.6,0.002]
[1761224192793,0.5976,3844.7,3844.6,0.002]
[1761224194588,0.1304,3844.7,3844.6,0.002]
[1761224194772,0.1304,3844.7,3844.6,2.60305082]
[1761224196417,0.1304,3844.7,3844.6,0.002]
[1761224196602,0.1304,3844.7,3844.6,2.60305082]
[1761224198309,0.1304,3844.7,3844.6,3.44336915]
[1761224200019,0.1304,3844.7,3844.6,2.60305082]
[1761224201574,4.15578026,3845.3,3844.6,2.60305082]
[1761224201915,0.1304,3844.9,3844.6,2.60305082]
[1761224202418,0.1304,3844.9,3844.7,2.60097434]
[1761224203215,0.1304,3844.9,3844.6,2.60303005]
[1761224204928,0.1304,3844.9,3844.7,2.60098193]
[1761224205228,0.1304,3844.9,3844.6,2.60302635]
[1761224205833,0.1304,3844.9,3844.6,0.002]
[1761224206134,0.5976,3844.9,3844.6,0.002]
[1761224206496,0.5976,3844.9,3844.6,2.60304746]
[1761224207015,0.1304,3844.9,3844.6,2.60304746]
[1761224208817,0.5968,3844.9,3844.6,2.60304746]
[1761224209426,0.5968,3844.9,3844.6,0.002]
[1761224209794,0.5968,3844.9,3844.6,2.60304348]
[1761224209996,0.5968,3844.9,3844.6,0.002]
[1761224209997,0.6981,3844.8,3844.6,0.002]
[1761224210397,0.4672,3844.7,3844.6,0.002]
[1761224210744,0.2309,3844.8,3844.6,0.002]
[1761224210909,0.6981,3844.8,3844.6,0.002]
[1761224211509,0.5976,3844.7,3844.6,0.002]
[1761224213297,0.1304,3844.7,3844.6,2.60305082]
[1761224215098,0.1304,3844.7,3844.6,0.002]
[1761224215498,0.1304,3844.7,3844.6,2.60305082]
[1761224216026,1.5562,3845.3,3844.9,2.60080711]
[1761224216027,0.1304,3845.0,3844.9,2.60080711]
[1761224216206,0.1304,3845.0,3844.8,2.62691161]
[1761224216613,0.1304,3845.0,3844.9,2.60084787]
[1761224219918,0.1304,3845.0,3844.8,2.60089406]
[1761224220123,0.1304,3845.0,3844.8,2.60090143]
[1761224222428,0.1304,3845.0,3844.9,2.60084787]
[1761224223543,0.001,3845.3,3845.2,2.60064495]
[1761224223743,0.001,3845.3,3845.2,5.92864495]
[1761224223922,0.001,3845.3,3845.0,3.328]
[1761224224128,0.4432,3845.2,3845.0,3.328]
[1761224225550,0.4432,3845.2,3845.0,5.92877399]
[1761224226461,0.001,3845.3,3845.0,5.92877399]
[1761224226649,0.001,3845.3,3845.1,2.60070298]
[1761224227541,0.001,3845.3,3845.2,2.60064495]
[1761224231856,0.001,3845.3,3845.1,2.60069921]
[1761224233178,0.0002,3845.3,3845.2,2.60064495]
[1761224233669,0.1306,3845.3,3845.1,3.45583241]
[1761224234250,0.1306,3845.3,3845.2,2.60064495]
[1761224234564,0.0002,3845.3,3845.2,2.60064495]
[1761224241257,0.0002,3845.3,3845.2,2.62234495]
[1761224241589,0.0002,3845.3,3845.2,3.90199977]
[1761224243764,0.0002,3845.3,3845.2,3.87599333]
[1761224244588,0.0002,3845.3,3845.2,4.00639333]
[1761224244908,0.0002,3845.3,3845.2,4.11043495]
[1761224246160,0.0002,3845.3,3845.2,4.13644139]
[1761224246398,0.0002,3845.3,3845.2,4.11043495]
[1761224250880,0.0002,3845.3,3845.2,0.10404162]
[1761224250881,0.4307,3845.3,3845.2,0.10404162]
[1761224251081,0.4307,3845.3,3845.1,0.53151552]
[1761224251813,0.4307,3845.3,3845.1,3.13220389]
[1761224253299,0.4307,3845.3,3845.2,2.60064495]
[1761224254879,0.0002,3845.3,3845.2,2.60064495]
[1761224255076,0.4307,3845.3,3845.2,2.60064495]
[1761224255603,0.4307,3845.3,3845.1,3.1322034]
[1761224257583,0.4299,3845.3,3845.1,3.1322034]
[1761224257904,0.2216,3845.4,3845.2,2.60064495]
[1761224258304,0.001,3845.6,3845.2,2.60064495]
[1761224259287,0.001,3845.6,3845.1,3.13220157]
[1761224259783,0.001,3845.6,3845.1,0.53151552]
[1761224259784,0.4305,3845.5,3845.1,0.53151552]
[1761224259988,3.03095074,3845.5,3845.1,0.53151552]
[1761224260188,2.60052639,3845.4,3845.1,0.53151552]
[1761224260389,0.4305,3845.4,3845.1,0.53151552]
[1761224260586,0.4305,3845.3,3845.1,0.53151552]
[1761224260996,0.1304,3845.2,3845.1,0.53151552]
[1761224261414,0.5609,3845.2,3845.1,0.53151552]
[1761224268380,0.1304,3845.2,3845.1,3.13222811]
[1761224268908,0.1304,3845.2,3845.1,0.53151552]
[1761224269410,0.1304,3845.2,3845.1,3.13222811]
[1761224275293,0.001,3845.3,3845.2,0.544687]
[1761224275497,0.1314,3845.3,3845.2,0.544687]
[1761224275697,0.1314,3845.3,3845.2,3.14533195]
[1761224276138,0.1314,3845.3,3845.2,3.17133839]
[1761224276299,0.1314,3845.3,3845.2,4.1057005]
[1761224276800,0.001,3845.3,3845.2,4.1057005]
[1761224277427,0.001,3845.3,3845.2,1.50505555]
[1761224277615,0.001,3845.3,3845.2,0.544687]
[1761224278006,0.001,3845.3,3845.2,3.14533195]
[1761224280935,0.001,3845.3,3845.2,3.58163195]
[1761224282208,0.0002,3845.3,3845.2,3.58163195]
[1761224285106,0.0002,3845.3,3845.2,3.60393195]
[1761224285366,0.0002,3845.3,3845.2,4.90926782]
[1761224285516,0.0002,3845.3,3845.2,4.86096138]
[1761224286852,0.0002,3845.3,3845.2,4.90926782]
[1761224290546,0.0002,3845.3,3845.2,4.88326138]
[1761224291847,0.0002,3845.3,3845.2,4.86096138]
[1761224296343,0.0002,3845.3,3845.2,4.88326138]
[1761224297450,0.0002,3845.3,3845.2,4.86096138]
[1761224299164,0.0002,3845.3,3845.2,4.88326138]
[1761224299662,0.0002,3845.3,3845.2,4.90926782]
[1761224300172,0.0002,3845.3,3845.2,4.88696782]
[1761224300385,0.0002,3845.3,3845.2,5.03966782]
[1761224300584,0.0002,3845.3,3845.2,6.59486782]
[1761224300891,0.0002,3845.3,3845.2,6.56886138]
[1761224302079,0.0002,3845.3,3845.2,6.54656138]
[1761224303360,0.0002,3845.3,3845.2,6.56886138]
[1761224305681,0.0002,3845.3,3845.2,6.54656138]
[1761224306889,0.0004,3845.6,3845.5,2.60044207]
[1761224307068,0.0004,3845.6,3845.5,7.08415448]
[1761224307270,0.0004,3845.6,3845.5,7.21455448]
[1761224307582,0.0004,3845.6,3845.5,7.65185448]
[1761224309689,0.4679,3845.6,3845.5,7.65185448]
[1761224309890,0.0004,3845.6,3845.5,7.65185448]
[1761224310469,0.4679,3845.6,3845.5,7.65185448]
[1761224311072,0.0004,3845.6,3845.5,7.65185448]
[1761224316563,0.4679,3845.6,3845.5,7.65185448]
[1761224317193,0.0004,3845.6,3845.5,7.65185448]
[1761224318093,0.4679,3845.6,3845.5,7.65185448]
[1761224318285,0.0004,3845.6,3845.5,6.49014207]
[1761224318597,0.4679,3845.6,3845.5,6.49014207]
[1761224320901,0.4679,3845.6,3845.5,6.49214207]
[1761224325396,0.0004,3845.6,3845.5,6.49214207]
[1761224325789,0.0004,3845.6,3845.5,8.04734207]
[1761224326019,0.0004,3845.6,3845.5,9.61780837]
[1761224326223,0.0004,3845.6,3845.5,10.12468837]
[1761224326590,0.0004,3845.6,3845.5,9.84882988]
[1761224327386,0.001,3846.1,3846.0,2.600104]
[1761224327387,1e-08,3846.1,3846.0,2.600104]
[1761224327592,1e-08,3846.1,3846.0,5.920104]
[1761224327802,1e-08,3846.1,3846.0,6.7944332]
[1761224328287,1e-08,3846.1,3846.0,6.89843343]
[1761224329695,1e-08,3846.1,3846.0,7.03106485]
[1761224331102,0.00020001,3846.4,3846.3,2.5999012]
[1761224331303,0.00020001,3846.4,3846.3,7.4741012]
[1761224331526,0.00020001,3846.4,3846.3,8.83935318]
[1761224332031,0.00020001,3846.4,3846.3,9.06505318]
[1761224335900,0.00020001,3846.4,3846.3,9.19465318]
[1761224340338,0.001,3848.2,3848.1,2.59868506]
[1761224340542,0.001,3848.2,3848.1,9.28258212]
[1761224340744,0.001,3848.6,3848.5,2.59841496]
[1761224341042,0.001,3848.6,3848.5,12.18948517]
[1761224341332,1e-08,3849.2,3849.1,4.15320992]
[1761224341534,1e-08,3849.2,3849.1,9.41741015]
[1761224341734,1e-08,3849.2,3849.1,9.83823006]
[1761224341925,1e-08,3849.2,3849.1,8.53828992]
[1761224342325,0.2302,3850.7,3849.1,8.53828992]
[1761224342326,1e-08,3849.8,3849.7,4.152805]
[1761224342636,1e-08,3849.8,3849.7,7.8850855]
[1761224342839,1e-08,3849.8,3849.7,8.3318855]
[1761224343043,1e-08,3849.8,3849.7,8.5620855]
[1761224349243,1e-08,3849.8,3849.7,9.0689655]
[1761224349756,0.6854,3852.0,3849.9,5.19222743]
[1761224349920,0.4552,3851.8,3851.7,2.59625619]
[1761224350127,0.4552,3851.8,3851.7,5.91125619]
[1761224350325,0.4552,3851.8,3851.7,6.04085619]
[1761224350636,0.4552,3851.8,3851.7,6.49605619]
[1761224350830,0.2302,3852.0,3851.9,2.59612139]
[1761224351524,0.6854,3852.0,3851.9,2.59612139]
[1761224351822,0.2302,3852.0,3851.9,2.72572139]
[1761224352019,0.2302,3852.0,3851.9,4.28092139]
[1761224352249,0.1296,3852.8,3852.7,2.59558231]
[1761224352452,0.2302,3853.1,3853.0,2.59538022]
[1761224352755,0.3598,3853.1,3853.0,5.90938022]
[1761224353125,0.3598,3853.1,3853.0,3.314]
[1761224353320,0.815,3853.1,3853.0,3.314]
[1761224353549,0.815,3853.1,3853.0,5.90938022]
[1761224353751,0.815,3853.1,3853.0,3.314]
[1761224355145,0.3598,3853.1,3853.0,3.314]
[1761224355339,0.815,3853.1,3853.0,3.314]
[1761224355532,0.8142,3853.1,3853.0,3.314]
[1761224357632,0.8142,3853.1,3853.0,5.90938022]
[1761224358838,3.33180527,3854.0,3853.4,2.59511081]
[1761224358839,0.2302,3854.0,3853.4,2.59511081]
[1761224359037,0.6854,3853.5,3853.4,3.313]
[1761224359265,0.6854,3853.5,3853.4,5.90811081]
[1761224360893,0.6854,3853.5,3853.3,2.5951706]
[1761224361065,0.6854,3853.5,3852.3,1.5552]
[1761224361066,0.2302,3853.5,3853.4,3.313]
[1761224361570,0.6854,3853.5,3853.4,3.313]
[1761224363895,0.6854,3853.5,3852.9,0.6854]
[1761224363896,0.50688,3853.4,3852.9,0.6854]
[1761224364210,2.59522223,3853.3,3853.0,3.312]
[1761224364397,2.59522223,3853.3,3853.0,3.102]
[1761224364591,0.4552,3853.2,3853.0,3.102]
[1761224365501,0.4552,3853.2,3852.6,2.59562778]
[1761224365689,0.4552,3853.2,3852.7,3.312]
[1761224365868,0.2302,3852.8,3852.7,3.312]
[1761224366572,0.6647,3852.8,3852.7,3.312]
[1761224366885,0.6647,3852.8,3851.9,2.59611132]
[1761224367067,0.4345,3852.7,3852.1,2.59596972]
[1761224367267,0.4345,3852.7,3852.0,5.9080307]
[1761224367706,0.4345,3852.7,3852.2,2.59590782]
[1761224367919,0.4345,3852.7,3852.0,3.312]
[1761224368112,0.4345,3852.7,3852.4,2.59573971]
[1761224368582,0.4345,3852.7,3852.3,2.59584826]
[1761224368911,0.4345,3852.7,3852.5,2.59569452]
[1761224369300,0.1296,3852.6,3852.5,2.59569452]
[1761224369915,0.2302,3852.8,3852.7,2.59558231]
[1761224370076,0.4652,3853.3,3853.1,2.59526624]
[1761224370390,0.4652,3853.4,3853.2,3.312]
[1761224371203,0.4652,3853.4,3853.3,2.59517815]
[1761224371399,0.4652,3853.4,3853.2,3.312]
[1761224373032,0.4652,3853.4,3853.2,5.90723737]
[1761224373517,0.4652,3853.4,3853.2,5.90722773]
[1761224373918,0.4652,3853.4,3853.2,3.312]
[1761224374605,0.4652,3853.4,3853.2,5.90723991]
[1761224374919,0.4652,3853.4,3853.3,2.59517815]
[1761224375531,0.001,3853.5,3853.4,2.59511081]
[1761224376251,0.4662,3853.5,3853.4,2.59511081]
[1761224378045,0.4662,3853.5,3853.4,3.311]
[1761224378410,0.4662,3853.5,3853.4,5.90611081]
[1761224379508,0.1832,3853.5,3853.4,5.90611081]
[1761224379929,0.3128,3853.5,3853.4,5.90611081]
[1761224380129,0.312,3853.5,3853.4,5.90611081]
[1761224380333,0.312,3853.5,3853.4,3.311]
[1761224380518,0.312,3853.5,3853.1,0.002]
[1761224380519,0.312,3853.5,3853.3,5.90613506]
[1761224380834,0.1296,3853.5,3853.4,2.59511081]
[1761224385065,0.1296,3853.5,3853.3,3.311]
[1761224385470,0.1296,3853.5,3853.4,2.59511081]
[1761224385967,0.1296,3853.5,3853.3,5.90615693]
[1761224386266,0.1296,3853.5,3853.1,2.59730559]
[1761224386267,0.50688,3853.7,3853.1,0.002]
[1761224386465,2.59524551,3853.2,3853.1,0.002]
[1761224386667,3.10212551,3853.2,3853.1,0.002]
[1761224387742,0.50688,3853.2,3853.1,0.002]
[1761224387954,0.50688,3853.6,3853.1,2.59731009]
[1761224388334,0.50688,3853.6,3853.1,0.002]
[1761224388535,1.5552,3853.5,3853.1,0.002]
[1761224389665,0.3068,3853.4,3853.1,0.002]
[1761224389832,0.3068,3853.4,3853.1,2.59730755]
[1761224390038,0.50688,3853.6,3853.1,2.59730755]
[1761224390238,0.3068,3853.5,3853.1,0.002]
[1761224390970,2.9018702,3853.5,3853.1,0.002]
[1761224391139,2.9028702,3853.5,3853.1,0.002]
[1761224391334,0.3068,3853.4,3853.1,0.002]
[1761224395270,0.001,3853.5,3853.1,0.002]
[1761224395643,0.001,3853.5,3853.3,2.59513551]
[1761224396341,0.1296,3853.4,3853.1,0.002]
[1761224396571,0.1296,3853.4,3853.2,2.59518085]
[1761224397067,0.1296,3853.4,3853.1,0.002]
[1761224397368,0.3068,3853.3,3853.1,3.312]
[1761224397569,0.1296,3853.2,3853.1,3.312]
[1761224397982,0.4364,3853.2,3853.1,3.312]
[1761224399266,0.4364,3853.2,3853.1,0.002]
[1761224400771,3.53852551,3853.2,3853.1,0.002]
[1761224400980,10.50684902,3853.2,3853.1,0.002]
[1761224401348,4.65759495,3852.8,3852.7,0.002]
[1761224401552,9.02091709,3852.8,3852.7,0.002]
[1761224401819,9.45081709,3852.8,3852.7,0.002]
[1761224402285,8.39749495,3852.8,3852.7,0.002]
[1761224402583,2.49198,3852.8,3852.7,0.002]
[1761224402757,0.1714,3852.9,3852.7,0.002]
[1761224402961,0.3747,3853.4,3852.7,2.59753728]
[1761224403288,0.5461,3853.3,3852.7,0.26175373]
[1761224403470,0.1714,3853.3,3852.7,0.002]
[1761224403644,0.3747,3853.2,3852.7,0.002]
[1761224403847,3.10223498,3853.1,3852.7,0.002]
[1761224404049,0.2272,3852.8,3852.7,0.002]
[1761224404489,2.82191495,3852.8,3852.7,0.002]
[1761224404654,3.47880645,3852.8,3852.7,0.002]
[1761224405375,0.6011,3852.8,3852.7,0.002]
[1761224405802,3.19661495,3852.8,3852.7,0.002]
[1761224405981,3.70349495,3852.8,3852.7,0.002]
[1761224407017,3.9111,3852.8,3852.7,0.002]
[1761224407525,3.5364,3852.8,3852.7,0.002]
[1761224407807,0.6011,3852.8,3852.7,0.002]
[1761224408378,0.4282,3853.1,3852.7,0.002]
[1761224408609,3.02613102,3853.1,3852.7,0.002]
[1761224408816,0.1723,3852.8,3852.7,0.002]
[1761224408991,0.4282,3853.0,3852.7,0.002]
[1761224409400,3.31,3853.2,3852.7,2.5975289]
[1761224409590,3.31,3853.2,3852.7,0.002]
[1761224409790,0.4257,3853.1,3852.7,0.002]